bitfinex/quotes_SOLUSD_20250601
["timestamp","ask_amount","ask_price","bid_price","bid_amount"]
[1748787346511,22.15055251,152.92,152.87,20.54785251]
[1748787346703,22.15055251,152.92,152.88,20.54785251]
[1748787347221,1.6027,152.92,152.89,20.54785251]
[1748787347428,27.08636434,152.94,152.9,20.54785251]
[1748787347808,6.53817621,152.95,152.91,20.54785251]
[1748787348115,27.08602872,152.95,152.91,20.54785251]
[1748787348735,27.08602872,152.95,152.9,20.54785251]
[1748787350630,27.08602872,152.95,152.91,20.54785251]
[1748787351226,27.08602872,152.95,152.9,20.54785251]
[1748787351428,20.54785251,152.94,152.9,20.54785251]
[1748787351631,27.08602872,152.95,152.9,20.54785251]
[1748787352711,27.08602872,152.95,152.91,20.54785251]
[1748787353242,27.08602872,152.95,152.9,20.54785251]
[1748787356029,20.54785251,152.94,152.9,20.54785251]
[1748787357216,6.53893938,152.93,152.9,20.54785251]
[1748787357819,6.53893938,152.93,152.89,20.54785251]
[1748787358339,27.08679189,152.93,152.87,10.76]
[1748787358545,20.54785251,152.92,152.87,10.76]
[1748787358762,22.88628784,152.93,152.86,26.0]
[1748787358913,20.54785251,152.9,152.86,20.54785251]
[1748787359115,20.54785251,152.9,152.86,40.68]
[1748787359324,20.54785251,152.9,152.83,10.76]
[1748787359325,27.08935836,152.87,152.83,10.76]
[1748787359564,27.08935836,152.87,152.83,31.30785251]
[1748787359719,6.54150585,152.87,152.83,31.30785251]
[1748787360427,27.08935836,152.87,152.83,10.76]
[1748787360627,20.54785251,152.89,152.84,20.54785251]
[1748787361161,20.54785251,152.88,152.82,47.22328728]
[1748787361376,6.54150585,152.87,152.84,20.54785251]
[1748787361728,6.54150585,152.87,152.83,20.54785251]
[1748787362336,27.08935836,152.87,152.82,61.22785251]
[1748787362541,27.08935836,152.87,152.83,20.54785251]
[1748787362542,6.54150585,152.87,152.83,20.54785251]
[1748787363451,1.5112,152.9,152.83,20.54785251]
[1748787363452,1.5112,152.9,152.86,20.54785251]
[1748787363653,1.5112,152.9,152.86,40.68]
[1748787363858,6.53952404,152.92,152.89,20.54785251]
[1748787364847,6.53952404,152.92,152.88,20.54785251]
[1748787365034,20.54785251,152.92,152.88,20.54785251]
[1748787365535,27.08679189,152.93,152.89,20.54785251]
[1748787367458,6.53893938,152.93,152.9,20.54785251]
[1748787367654,6.53893938,152.93,152.91,20.54785251]
[1748787368056,6.53893938,152.93,152.89,20.54785251]
[1748787368354,27.08679189,152.93,152.89,20.54785251]
[1748787368558,6.53979465,152.91,152.88,20.54785251]
[1748787369457,6.53979465,152.91,152.86,65.8715808]
[1748787369458,6.53979465,152.91,152.89,20.54785251]
[1748787369643,6.53949107,152.92,152.89,20.54785251]
[1748787370156,6.53897451,152.93,152.89,20.54785251]
[1748787370645,6.53897451,152.93,152.9,20.54785251]
[1748787372350,6.53897451,152.93,152.87,32.54137879]
[1748787372550,6.53897451,152.93,152.9,20.54785251]
[1748787373555,1.506,152.94,152.92,20.54785251]
[1748787373759,6.53818163,152.95,152.93,20.54785251]
[1748787374965,1.5228,152.98,152.94,20.54785251]
[1748787375463,20.54785251,152.97,152.93,20.54785251]
[1748787375663,6.5376569,152.96,152.88,20.54785251]
[1748787375960,27.08550941,152.96,152.89,59.32964886]
[1748787376161,27.08550941,152.96,152.92,20.54785251]
[1748787376583,6.5376569,152.96,152.93,20.54785251]
[1748787376747,20.54785251,152.97,152.94,20.54785251]
[1748787376748,6.53732278,152.97,152.94,20.54785251]
[1748787376955,1.5228,152.98,152.95,20.54785251]
[1748787376956,8.05974854,152.98,152.95,20.54785251]
[1748787377276,8.05974854,152.98,152.94,20.54785251]
[1748787377485,28.60760105,152.98,152.94,20.54785251]
[1748787377784,8.05974854,152.98,152.95,20.54785251]
[1748787378899,8.05974854,152.98,152.94,20.54785251]
[1748787379190,8.05974854,152.98,152.93,40.68]
[1748787379394,8.05974854,152.98,152.94,20.54785251]
[1748787380387,8.05974854,152.98,152.95,20.54785251]
[1748787382161,6.53643857,152.99,152.96,20.54785251]
[1748787382357,6.53609281,153.0,152.97,20.54785251]
[1748787382955,27.08352431,153.01,152.97,20.54785251]
[1748787383157,6.5356718,153.01,152.97,20.54785251]
[1748787383666,27.08352431,153.01,152.97,20.54785251]
[1748787384862,20.54785251,152.99,152.95,20.54785251]
[1748787385171,20.54785251,152.98,152.94,61.22785251]
[1748787385371,20.54785251,152.98,152.94,40.68]
[1748787386497,6.53722952,152.97,152.94,40.68]
[1748787386667,6.53722952,152.97,152.94,61.22785251]
[1748787386873,20.54785251,152.98,152.95,20.54785251]
[1748787386874,6.53685659,152.98,152.95,20.54785251]
[1748787387074,6.53653169,152.99,152.96,20.54785251]
[1748787387293,6.53594877,153.0,152.97,20.54785251]
[1748787387958,1.6615,153.02,152.98,20.54785251]
[1748787388473,8.19665692,153.02,152.98,20.54785251]
[1748787388860,28.74450943,153.02,152.98,20.54785251]
[1748787389071,28.74450943,153.02,152.97,20.54785251]
[1748787389670,28.74450943,153.02,152.95,18.64964886]
[1748787389869,20.54785251,153.0,152.95,20.54785251]
[1748787390171,24.53439054,153.02,152.96,20.54785251]
[1748787390365,45.08224305,153.02,152.97,20.54785251]
[1748787390763,8.19665692,153.02,152.98,20.54785251]
[1748787391773,28.74450943,153.02,152.98,20.54785251]
[1748787393797,8.19665692,153.02,152.99,20.54785251]
[1748787394001,18.2265989,153.03,153.0,20.54785251]
[1748787394174,11.69176854,153.03,153.01,20.54785251]
[1748787394984,8.17638344,153.06,153.02,20.54785251]
[1748787395176,8.17638344,153.06,153.03,20.54785251]
[1748787395684,8.17638344,153.06,153.02,61.20785251]
[1748787396980,6.53210529,153.09,153.05,20.54785251]
[1748787397186,27.0799578,153.09,153.04,20.54785251]
[1748787397373,20.54785251,153.08,153.04,20.54785251]
[1748787397881,20.54785251,153.07,153.03,20.54785251]
[1748787398069,20.54785251,153.07,153.02,61.20785251]
[1748787400067,6.5333856,153.06,153.02,61.20785251]
[1748787400786,20.54785251,153.05,153.02,40.66]
[1748787401303,20.54785251,153.03,152.99,20.54785251]
[1748787401586,20.54785251,153.03,152.99,61.20785251]
[1748787401787,20.54785251,153.04,153.0,20.54785251]
[1748787401985,20.54785251,153.05,153.0,20.54785251]
[1748787402288,27.08209192,153.04,152.98,44.64964886]
[1748787402495,27.08209192,153.04,153.0,20.54785251]
[1748787403295,6.53423941,153.04,153.01,20.54785251]
[1748787404680,27.08209192,153.04,153.0,61.18785251]
[1748787405276,6.53423941,153.04,153.0,61.18785251]
[1748787406298,27.08181606,153.05,153.0,61.18785251]
[1748787406479,6.53396355,153.05,153.01,20.54785251]
[1748787408201,27.08181606,153.05,153.01,20.54785251]
[1748787408398,27.08181606,153.05,152.97,106.6716]
[1748787408399,22.86849474,153.05,152.97,10.74]
[1748787408579,20.54785251,153.01,152.97,10.74]
[1748787408779,22.86849474,153.05,152.97,10.74]
[1748787409077,20.54785251,153.02,152.97,31.28785251]
[1748787409280,20.54785251,153.01,152.97,31.28785251]
[1748787410200,22.86849474,153.05,152.97,31.28785251]
[1748787410201,20.54785251,153.02,152.97,31.28785251]
[1748787410494,6.53552055,153.01,152.97,31.28785251]
[1748787411779,6.53552055,153.01,152.98,20.54785251]
[1748787413499,12.2871,153.06,153.0,20.54785251]
[1748787413693,6.53381247,153.05,153.03,20.54785251]
[1748787415201,1.5471,153.06,153.03,20.54785251]
[1748787415417,8.08049311,153.06,153.03,20.54785251]
[1748787416492,20.54785251,153.04,152.97,36.74]
[1748787416775,6.53552055,153.01,152.97,57.28785251]
[1748787417206,6.53552055,153.01,152.98,20.54785251]
[1748787419073,6.53552055,153.01,152.97,71.92785251]
[1748787419272,6.53552055,153.01,152.98,20.54785251]
[1748787420012,6.53552055,153.01,152.97,51.38]
[1748787420186,6.53552055,153.01,152.98,20.54785251]
[1748787420389,20.54785251,153.02,152.98,20.54785251]
[1748787420787,16.3359282,153.04,152.98,20.54785251]
[1748787421010,20.54785251,153.03,152.98,20.54785251]
[1748787421224,6.53381247,153.05,152.99,20.54785251]
[1748787421395,27.08166498,153.05,153.0,61.18785251]
[1748787422080,7.6311,153.06,153.0,61.18785251]
[1748787422081,8.08054554,153.06,153.03,20.54785251]
[1748787422307,8.08054554,153.06,153.02,20.54785251]
[1748787422509,28.62839805,153.06,153.02,20.54785251]
[1748787422692,20.54785251,153.05,153.01,20.54785251]
[1748787423210,20.54785251,153.05,153.0,61.18785251]
[1748787423683,28.62839805,153.06,153.02,20.54785251]
[1748787424014,8.08054554,153.06,153.02,20.54785251]
[1748787424397,8.08054554,153.06,153.03,20.54785251]
[1748787424589,8.08054554,153.06,153.04,40.64]
[1748787424911,155.5322349,153.09,153.05,20.54785251]
[1748787425093,155.5322349,153.09,153.06,20.54785251]
[1748787425288,6.5322349,153.09,153.06,20.54785251]
[1748787425888,28.58018486,153.1,153.06,20.54785251]
[1748787426086,1.5005,153.1,153.07,20.54785251]
[1748787426303,8.03219175,153.1,153.08,40.64]
[1748787427411,28.58004426,153.1,153.08,40.64]
[1748787428711,8.03219175,153.1,153.08,40.64]
[1748787428908,28.58004426,153.1,153.08,40.64]
[1748787429094,1.5005,153.1,153.08,40.64]
[1748787429292,26.0,153.14,153.08,61.18785251]
[1748787429293,27.07825151,153.13,153.08,61.18785251]
[1748787429713,6.530399,153.13,153.08,61.18785251]
[1748787429917,27.07825151,153.13,153.08,61.18785251]
[1748787430388,46.54785251,153.16,153.12,20.54785251]
[1748787430789,6.52954619,153.15,153.12,20.54785251]
[1748787431103,27.0773987,153.15,153.1,61.18785251]
[1748787431898,6.52954619,153.15,153.11,20.54785251]
[1748787432210,27.0761199,153.18,153.14,20.54785251]
[1748787432402,6.52826739,153.18,153.14,20.54785251]
[1748787432601,6.52826739,153.18,153.14,61.18785251]
[1748787432816,6.52826739,153.18,153.15,20.54785251]
[1748787433186,6.52826739,153.18,153.14,61.18785251]
[1748787433391,6.52826739,153.18,153.15,20.54785251]
[1748787434018,6.52826739,153.18,153.14,40.64]
[1748787434186,6.52826739,153.18,153.15,20.54785251]
[1748787434808,6.52826739,153.18,153.16,20.54785251]
[1748787435010,1.5082,153.19,153.16,20.54785251]
[1748787435222,6.5275511,153.2,153.14,40.64]
[1748787435510,6.5275511,153.2,153.17,20.54785251]
[1748787435709,27.0748416,153.21,153.17,20.54785251]
[1748787436114,6.52698909,153.21,153.17,20.54785251]
[1748787436413,6.52698909,153.21,153.16,20.54785251]
[1748787436414,27.0748416,153.21,153.16,20.54785251]
[1748787436711,27.0748416,153.21,153.17,40.62]
[1748787436900,6.52698909,153.21,153.17,40.62]
[1748787437106,27.0748416,153.21,153.17,40.62]
[1748787437333,20.54785251,153.2,153.17,40.62]
[1748787437818,6.52784124,153.19,153.17,40.62]
[1748787438202,20.54785251,153.22,153.17,61.16785251]
[1748787438399,27.0748416,153.21,153.17,61.16785251]
[1748787438599,43.39231434,153.21,153.17,40.62]
[1748787439108,43.39231434,153.21,153.18,0.5]
[1748787439689,20.54785251,153.2,153.18,0.5]
[1748787439895,28.58389375,153.19,153.07,0.8244]
[1748787440096,20.54785251,153.11,153.05,10.74]
[1748787440302,20.54785251,153.1,153.06,20.54785251]
[1748787440510,20.54785251,153.11,153.06,66.62]
[1748787440713,20.54785251,153.11,153.07,20.54785251]
[1748787441011,20.54785251,153.12,153.07,20.54785251]
[1748787441210,20.54785251,153.14,153.1,20.54785251]
[1748787441711,20.54785251,153.13,153.09,20.54785251]
[1748787442125,6.53080826,153.13,153.09,20.54785251]
[1748787443213,6.53080826,153.13,153.1,20.54785251]
[1748787443817,6.52954619,153.15,153.1,61.16785251]
[1748787444011,27.0773987,153.15,153.1,61.16785251]
[1748787445225,20.54785251,153.14,153.1,61.16785251]
[1748787446636,27.07825151,153.13,153.09,20.54785251]
[1748787446807,20.54785251,153.12,153.08,20.54785251]
[1748787447168,20.54785251,153.11,153.06,26.0]
[1748787447309,20.54785251,153.09,153.05,90.55750137]
[1748787447702,20.54785251,153.09,153.05,31.28785251]
[1748787447917,20.54785251,153.09,153.05,10.74]
[1748787448100,20.54785251,153.07,153.05,10.74]
[1748787448519,20.54785251,153.08,153.04,61.16785251]
[1748787448727,20.54785251,153.07,153.04,40.62]
[1748787449023,20.54785251,153.08,153.04,40.62]
[1748787449224,20.54785251,153.08,153.04,61.16785251]
[1748787449425,20.54785251,153.08,153.04,20.54785251]
[1748787450114,20.54785251,153.09,153.04,20.54785251]
[1748787450835,6.532532,153.08,153.05,20.54785251]
[1748787451042,16.32891041,153.11,153.07,20.54785251]
[1748787451043,6.53136054,153.11,153.07,20.54785251]
[1748787451235,6.53136054,153.11,153.07,61.16785251]
[1748787451947,6.53136054,153.11,153.08,20.54785251]
[1748787452147,28.62739345,153.12,153.08,20.54785251]
[1748787452323,6.53084094,153.12,153.09,20.54785251]
[1748787452522,6.53084094,153.12,153.08,20.54785251]
[1748787453549,6.53054987,153.13,153.09,20.54785251]
[1748787453840,6.53054987,153.13,153.07,47.15281273]
[1748787454021,6.53054987,153.13,153.08,18.64964886]
[1748787454217,6.53054987,153.13,153.09,20.54785251]
[1748787456045,6.53054987,153.13,153.1,0.5]
[1748787456238,16.31946747,153.2,153.13,18.64964886]
[1748787456423,36.86731998,153.2,153.15,20.54785251]
[1748787456622,20.54785251,153.19,153.15,20.54785251]
[1748787456817,20.54785251,153.19,153.13,18.64964886]
[1748787456818,20.54785251,153.2,153.16,20.54785251]
[1748787457224,30.67505327,153.2,153.16,30.67505327]
[1748787457527,1.5546,153.21,153.17,30.67505327]
[1748787457829,32.22965327,153.21,153.17,30.67505327]
[1748787458143,1.5546,153.21,153.17,30.67505327]
[1748787458346,8.08177368,153.21,153.17,30.67505327]
[1748787459526,1.5546,153.21,153.18,30.67505327]
[1748787459925,30.67505327,153.23,153.19,30.67505327]
[1748787459926,37.20124569,153.23,153.19,30.67505327]
[1748787460127,13.242244,153.25,153.2,30.67505327]
[1748787460128,50.44270954,153.25,153.2,30.67505327]
[1748787460331,50.44270954,153.25,153.21,30.67505327]
[1748787460531,50.44270954,153.25,153.2,30.67505327]
[1748787461433,30.67505327,153.21,153.17,40.6]
[1748787462030,30.67505327,153.21,153.17,71.27505327]
[1748787462230,37.20242169,153.21,153.17,71.27505327]
[1748787462444,6.52736842,153.21,153.17,71.27505327]
[1748787463353,37.20242169,153.21,153.17,40.6]
[1748787463546,37.20242169,153.21,153.16,81.99505327]
[1748787464255,37.20242169,153.21,153.16,10.72]
[1748787464256,22.84484116,153.21,153.16,10.72]
[1748787464440,30.67505327,153.19,153.16,10.72]
[1748787465041,30.67505327,153.2,153.16,41.39505327]
[1748787465357,6.52736842,153.21,153.17,30.67505327]
[1748787465550,6.52736842,153.21,153.18,30.67505327]
[1748787465929,6.52669338,153.22,153.18,30.67505327]
[1748787466465,30.67505327,153.23,153.19,30.67505327]
[1748787466633,37.20076457,153.24,153.19,71.27505327]
[1748787467463,6.5257113,153.24,153.2,30.67505327]
[1748787468543,6.5257113,153.24,153.21,30.67505327]
[1748787469134,43.91729727,153.25,153.19,47.12772146]
[1748787469135,19.76756677,153.25,153.22,30.67505327]
[1748787469329,50.44262004,153.25,153.21,30.67505327]
[1748787471539,19.76756677,153.25,153.19,71.27505327]
[1748787471754,30.67505327,153.24,153.2,30.67505327]
[1748787472137,30.67505327,153.24,153.19,71.27505327]
[1748787473049,6.52613717,153.23,153.2,30.67505327]
[1748787473244,37.20119044,153.23,153.19,40.6]
[1748787473432,37.20119044,153.23,153.19,71.27505327]
[1748787474968,37.20119044,153.23,153.2,30.67505327]
[1748787475163,6.5257113,153.24,153.2,30.67505327]
[1748787475374,37.20076457,153.24,153.2,30.67505327]
[1748787478934,30.67505327,153.23,153.19,40.58]
[1748787479162,20.44427061,153.23,153.19,40.58]
[1748787479342,26.96998191,153.24,153.2,20.44427061]
[1748787480457,20.44427061,153.23,153.19,61.02427061]
[1748787480657,26.96998191,153.24,153.2,20.44427061]
[1748787480849,26.96998191,153.24,153.21,0.5]
[1748787481851,6.52656311,153.22,153.21,0.5]
[1748787484494,43.28724149,153.22,153.16,31.16427061]
[1748787484655,20.44427061,153.19,153.16,10.72]
[1748787484968,22.84297088,153.22,153.16,71.74427061]
[1748787484969,20.44427061,153.2,153.16,71.74427061]
[1748787485687,6.52656311,153.22,153.18,20.44427061]
[1748787485891,26.97083372,153.22,153.18,20.44427061]
[1748787486183,20.44427061,153.21,153.17,61.02427061]
[1748787487153,6.52741514,153.2,153.17,61.02427061]
[1748787488158,6.52741514,153.2,153.12,6.5382]
[1748787488360,6.52741514,153.2,153.13,20.44427061]
[1748787488361,20.44427061,153.17,153.13,20.44427061]
[1748787488658,6.52741514,153.2,153.14,40.58]
[1748787488659,20.44427061,153.18,153.14,40.58]
[1748787489462,6.5286936,153.17,153.12,10.72]
[1748787489667,26.97296421,153.17,153.13,40.58]
[1748787489864,6.5286936,153.17,153.13,61.02427061]
[1748787490061,6.5286936,153.17,153.14,20.44427061]
[1748787490255,1.6264,153.23,153.16,20.44427061]
[1748787490472,26.97083372,153.22,153.18,20.44427061]
[1748787491175,26.97083372,153.22,153.17,61.02427061]
[1748787491678,20.44427061,153.21,153.17,61.02427061]
[1748787492465,26.97083372,153.22,153.17,61.02427061]
[1748787493204,26.97083372,153.22,153.18,20.44427061]
[1748787493865,6.52656311,153.22,153.18,20.44427061]
[1748787494383,26.97083372,153.22,153.18,20.44427061]
[1748787495776,6.52656311,153.22,153.19,0.5]
[1748787495978,26.97083372,153.22,153.19,0.5]
[1748787496770,20.44427061,153.21,153.17,61.02427061]
[1748787498595,20.44427061,153.2,153.17,40.58]
[1748787498779,6.52784124,153.19,153.17,40.58]
[1748787499997,6.52784124,153.19,153.16,31.16427061]
[1748787500288,26.97211185,153.19,153.16,10.72]
[1748787500788,26.97211185,153.19,153.15,61.02427061]
[1748787501576,26.97211185,153.19,153.15,40.58]
[1748787501891,6.52698909,153.21,153.15,61.02427061]
[1748787502083,20.44427061,153.2,153.16,20.44427061]
[1748787502981,6.52698909,153.21,153.16,20.44427061]
[1748787503185,20.44427061,153.2,153.16,20.44427061]
[1748787503370,20.44427061,153.2,153.16,61.02427061]
[1748787503571,1.6264,153.23,153.18,20.44427061]
[1748787503572,8.15288982,153.23,153.18,20.44427061]
[1748787503783,20.44427061,153.22,153.18,20.44427061]
[1748787504272,20.44427061,153.22,153.17,20.44427061]
[1748787505393,20.44427061,153.22,153.18,20.44427061]
[1748787505896,26.9710561,153.22,153.18,20.44427061]
[1748787506071,26.9710561,153.22,153.19,0.5]
[1748787507299,20.44427061,153.21,153.19,0.5]
[1748787508405,26.97156346,153.21,153.19,0.5]
[1748787509098,25.97156346,153.21,153.19,0.5]
[1748787510803,6.52729285,153.21,153.19,0.5]
[1748787510988,26.97156346,153.21,153.19,0.5]
[1748787511905,26.97156346,153.21,153.1,35.9012275]
[1748787511906,40.88854122,153.2,153.1,35.9012275]
[1748787512106,20.44427061,153.15,153.11,61.02427061]
[1748787512473,20.44427061,153.14,153.1,36.72]
[1748787512698,26.97424702,153.14,153.1,97.74427061]
[1748787513091,6.52997641,153.14,153.11,20.44427061]
[1748787513403,6.52997641,153.14,153.11,61.02427061]
[1748787513580,6.52997641,153.14,153.11,20.44427061]
[1748787513780,6.52997641,153.14,153.1,51.3]
[1748787514012,26.97424702,153.14,153.12,0.5]
[1748787515190,26.97424702,153.14,153.1,71.74427061]
[1748787516779,20.44427061,153.11,153.06,10.72]
[1748787516986,20.44427061,153.07,153.01,20.44427061]
[1748787517200,1.6239,153.1,153.01,20.44427061]
[1748787517201,20.44427061,153.05,153.01,20.44427061]
[1748787517407,20.44427061,153.06,153.01,20.44427061]
[1748787517609,20.44427061,153.08,153.04,20.44427061]
[1748787517980,6.53295877,153.07,153.03,20.44427061]
[1748787518212,6.53295877,153.07,153.0,72.33611376]
[1748787518213,20.44427061,153.06,153.02,20.44427061]
[1748787518513,20.44427061,153.06,153.03,40.58]
[1748787519111,20.44427061,153.06,153.03,41.08]
[1748787519909,20.44427061,153.05,153.03,0.5]
[1748787520429,26.97680261,153.08,153.04,20.44427061]
[1748787520720,26.97680261,153.08,153.03,61.52427061]
[1748787521094,26.97680261,153.08,153.03,61.02427061]
[1748787521301,20.44427061,153.08,153.04,20.44427061]
[1748787522253,26.97690486,153.08,153.03,61.02427061]
[1748787523253,28.60027466,153.1,153.06,20.44427061]
[1748787523443,22.06817061,153.1,153.06,20.44427061]
[1748787523631,1.6239,153.1,153.07,20.44427061]
[1748787523814,1.6239,153.1,153.06,20.44427061]
[1748787524017,28.5998591,153.1,153.06,20.44427061]
[1748787524748,28.5998591,153.1,153.04,10.72]
[1748787524749,20.44427061,153.09,153.04,10.72]
[1748787524953,20.44427061,153.09,153.05,20.44427061]
[1748787525738,1.6239,153.1,153.07,20.44427061]
[1748787526045,28.59985195,153.1,153.06,20.44427061]
[1748787526445,28.59985195,153.1,153.06,20.94427061]
[1748787526849,22.06817061,153.1,153.06,20.94427061]
[1748787527054,22.06817061,153.1,153.07,20.44427061]
[1748787527055,1.6239,153.1,153.07,20.44427061]
[1748787528462,1.6239,153.1,153.07,61.04427061]
[1748787528836,1.6239,153.1,153.07,40.6]
[1748787529345,1.6239,153.1,153.07,61.04427061]
[1748787530165,26.9750972,153.12,153.07,40.6]
[1748787530382,26.9750972,153.12,153.07,61.04427061]
[1748787533089,26.97512938,153.12,153.07,61.04427061]
[1748787533791,20.44427061,153.11,153.07,61.04427061]
[1748787535285,26.97512938,153.12,153.07,61.04427061]
[1748787535466,20.44427061,153.11,153.06,0.5]
[1748787535667,6.53085877,153.12,153.06,0.5]
[1748787535975,20.44427061,153.1,153.06,0.5]
[1748787536360,20.44427061,153.11,153.06,20.94427061]
[1748787536665,20.44427061,153.1,153.06,20.94427061]
[1748787538293,6.530399,153.13,153.06,20.94427061]
[1748787538294,20.44427061,153.11,153.06,20.94427061]
[1748787538469,20.44427061,153.11,153.07,20.44427061]
[1748787538670,20.44427061,153.1,153.06,0.5]
[1748787538893,20.44427061,153.08,153.06,0.5]
[1748787539097,20.44427061,153.07,153.06,0.5]
[1748787539476,1.5079,153.08,153.04,18.64964886]
[1748787539677,1.5079,153.08,153.06,20.44427061]
[1748787539992,1.5079,153.08,153.05,61.04427061]
[1748787541026,1.5079,153.12,153.06,20.44427061]
[1748787541199,1.5079,153.12,153.08,20.44427061]
[1748787541374,21.95217061,153.12,153.08,20.44427061]
[1748787541574,28.48302587,153.12,153.08,20.44427061]
[1748787542114,175.0,153.15,153.11,20.44427061]
[1748787542115,20.44427061,153.15,153.11,20.44427061]
[1748787542480,1.5348,153.16,153.12,20.44427061]
[1748787542684,28.50833249,153.16,153.12,20.44427061]
[1748787542889,26.74021597,153.16,153.11,20.44427061]
[1748787543076,26.74021597,153.16,153.09,40.6]
[1748787543270,20.44427061,153.15,153.11,20.44427061]
[1748787543475,26.74021597,153.16,153.11,20.44427061]
[1748787543784,26.9730939,153.17,153.12,20.44427061]
[1748787545194,26.97357767,153.16,153.1,6.53156599]
[1748787545495,26.97357767,153.16,153.11,20.44427061]
[1748787546607,20.44427061,153.13,153.09,20.44427061]
[1748787546811,20.44427061,153.13,153.09,40.6]
[1748787547012,20.44427061,153.13,153.08,31.16427061]
[1748787547417,20.44427061,153.12,153.08,10.72]
[1748787547614,20.44427061,153.12,153.07,20.44427061]
[1748787547615,20.44427061,153.1,153.04,10.72]
[1748787547793,20.44427061,153.1,153.04,31.16427061]
[1748787547794,20.44427061,153.08,153.04,31.16427061]
[1748787547993,20.44427061,153.08,153.04,71.76427061]
[1748787548404,26.97714941,153.08,153.04,31.16427061]
[1748787548608,26.97714941,153.08,153.04,20.44427061]
[1748787548799,26.97714941,153.08,153.05,0.5]
[1748787549320,6.5328788,153.08,153.05,0.5]
[1748787551207,6.5328788,153.08,153.04,20.44427061]
[1748787553723,6.53210529,153.09,153.04,20.44427061]
[1748787554025,26.9763759,153.09,153.05,20.44427061]
[1748787557529,1.6219,153.1,153.07,20.44427061]
[1748787557706,6.53163385,153.11,153.08,20.44427061]
[1748787557906,26.97522297,153.12,153.08,20.44427061]
[1748787558101,32.53056329,153.13,153.09,20.44427061]
[1748787558324,52.9748339,153.13,153.09,20.44427061]
[1748787558624,52.9748339,153.13,153.08,20.44427061]
[1748787558625,20.44427061,153.12,153.08,20.44427061]
[1748787559197,26.9748339,153.13,153.09,20.44427061]
[1748787561139,8.1519882,153.14,153.11,20.44427061]
[1748787562745,8.1519882,153.14,153.1,20.44427061]
[1748787563118,8.1519882,153.14,153.07,40.6]
[1748787563119,28.59625881,153.14,153.09,20.44427061]
[1748787563325,28.59625881,153.14,153.08,20.44427061]
[1748787563326,20.44427061,153.12,153.08,20.44427061]
[1748787563520,24.47691963,153.14,153.08,20.44427061]
[1748787563521,20.44427061,153.13,153.08,20.44427061]
[1748787563713,28.59625881,153.14,153.09,20.44427061]
[1748787563915,1.6219,153.14,153.1,20.44427061]
[1748787564914,1.6219,153.14,153.11,20.44427061]
[1748787567930,20.44427061,153.15,153.11,20.44427061]
[1748787568135,20.44427061,153.17,153.13,20.44427061]
[1748787568742,28.56208218,153.18,153.13,20.44427061]
[1748787569329,8.11781157,153.18,153.13,20.44427061]
[1748787569533,28.56208218,153.18,153.14,20.44427061]
[1748787570142,1.5894,153.18,153.14,20.44427061]
[1748787570343,1.5894,153.18,153.15,20.44427061]
[1748787571136,28.56194527,153.18,153.14,20.44427061]
[1748787573054,28.56206123,153.18,153.14,20.44427061]
[1748787573439,20.44427061,153.17,153.13,20.44427061]
[1748787573657,28.56206123,153.18,153.13,20.44427061]
[1748787574458,28.56206123,153.18,153.14,20.44427061]
[1748787575271,1.5894,153.18,153.14,20.44427061]
[1748787575563,20.44427061,153.19,153.15,20.44427061]
[1748787578468,26.97239697,153.19,153.15,20.44427061]
[1748787579970,20.44427061,153.19,153.15,20.44427061]
[1748787580945,1.6436,153.22,153.18,20.44427061]
[1748787581147,6.52567185,153.25,153.2,20.44427061]
[1748787581352,20.44427061,153.24,153.2,20.44427061]
[1748787581848,26.96998701,153.24,153.2,20.44427061]
[1748787582050,6.5257164,153.24,153.21,20.44427061]
[1748787582641,20.44427061,153.23,153.19,20.44427061]
[1748787583869,20.44427061,153.24,153.2,20.44427061]
[1748787584245,8.1460234,153.26,153.21,20.44427061]
[1748787584452,28.59029401,153.26,153.22,20.44427061]
[1748787585254,20.44427061,153.25,153.21,20.44427061]
[1748787585870,26.96956388,153.25,153.21,20.44427061]
[1748787586058,20.44427061,153.24,153.2,20.44427061]
[1748787586266,20.44427061,153.23,153.19,20.44427061]
[1748787586665,20.44427061,153.23,153.19,20.94427061]
[1748787587773,26.97038744,153.24,153.2,20.44427061]
[1748787589178,6.52541445,153.25,153.2,20.44427061]
[1748787589474,26.96968506,153.25,153.21,20.44427061]
[1748787589853,8.14602,153.26,153.21,20.44427061]
[1748787590057,28.59029061,153.26,153.22,20.44427061]
[1748787590482,8.14602,153.26,153.22,20.44427061]
[1748787590783,28.59029061,153.26,153.22,20.44427061]
[1748787592589,0.1,153.26,153.25,20.44427061]
[1748787594087,0.1,153.26,153.24,20.44427061]
[1748787595765,0.1,153.26,153.25,20.44427061]
[1748787597498,0.1,153.26,153.25,61.00427061]
[1748787598501,0.1,153.26,153.25,67.52955609]
[1748787598671,0.1,153.26,153.25,86.17920495]